[Event "7° Rencontres Internationales des Echecs Francophones"]
[Site "PARIS, France"]
[Date "2019.08.10"]
[Round "1.9"]
[White "Chabanon, Jean-Luc"]
[Black "Hasseine, Madiane"]
[Result "1-0"]
[TimeControl "90'+30' + 30seconds/move"]
[WhiteElo "2448"]
[BlackElo "1856"]

1. d4 {[%clk 00:05:05]} {[%emt 00:02:15]} Nf6 {[%clk 00:05:06]} 2. c4 {[%clk
00:05:06]} g6 {[%clk 00:05:08]} 3. Nc3 {[%clk 00:05:08]} Bg7 {[%clk 00:05:10]}
4. e4 {[%emt 00:00:02]} d6 5. Be2 {[%clk 00:05:12]} O-O {[%clk 00:05:12]}
{[%emt 00:00:04]} 6. Nf3 {[%clk 00:05:12]} {[%emt 00:00:03]} Na6 {[%clk
00:05:14]} 7. O-O {[%clk 00:05:12]} {[%emt 00:00:04]} e5 {[%clk 00:05:16]} 8.
Be3 {[%clk 00:05:11]} {[%emt 00:00:05]} c6 {[%clk 00:05:18]} {[%emt 00:00:01]}
9. d5 {[%clk 00:05:02]} {[%emt 00:00:12]} Ng4 {[%clk 00:05:20]} 10. Bg5 {[%clk
00:05:04]} f6 {[%clk 00:05:22]} {[%emt 00:00:02]} 11. Bh4 {[%clk 00:04:55]}
{[%emt 00:00:12]} c5 {[%clk 00:05:24]} 12. Ne1 {[%clk 00:04:44]} {[%emt
00:00:14]} h5 {[%clk 00:05:26]} {[%emt 00:00:02]} 13. h3 {[%clk 00:04:36]}
{[%emt 00:00:10]} Nh6 {[%emt 00:00:03]} 14. f3 {[%clk 00:04:13]} {[%emt
00:00:26]} Nf7 {[%clk 00:05:24]} {[%emt 00:00:06]} 15. Nc2 {[%clk 00:04:02]}
{[%emt 00:00:14]} Bh6 {[%clk 00:05:19]} {[%emt 00:00:08]} 16. a3 {[%clk
00:03:46]} {[%emt 00:00:18]} Bd7 {[%clk 00:05:02]} {[%emt 00:00:20]} 17. Rb1
{[%clk 00:03:37]} {[%emt 00:00:12]} Qe7 {[%clk 00:04:59]} {[%emt 00:00:06]} 18.
b4 {[%clk 00:03:37]} {[%emt 00:00:04]} Rae8 {[%clk 00:04:36]} {[%emt 00:00:26]}
19. Bd3 {[%clk 00:03:13]} {[%emt 00:00:26]} Bg5 {[%clk 00:04:08]} {[%emt
00:00:31]} 20. Bf2 {[%clk 00:03:11]} {[%emt 00:00:05]} Kg7 {[%clk 00:03:49]}
{[%emt 00:00:22]} 21. Qe2 {[%clk 00:03:02]} {[%emt 00:00:12]} b6 {[%clk
00:03:36]} {[%emt 00:00:17]} 22. b5 {[%clk 00:02:56]} {[%emt 00:00:09]} Nc7
{[%clk 00:03:36]} {[%emt 00:00:02]} 23. a4 {[%clk 00:02:59]} f5 {[%clk
00:03:23]} {[%emt 00:00:16]} 24. a5 {[%clk 00:02:56]} {[%emt 00:00:05]} Bh4
{[%clk 00:03:17]} {[%emt 00:00:09]} 25. axb6 {[%clk 00:02:41]} {[%emt
00:00:19]} Bxf2+ {[%clk 00:02:54]} {[%emt 00:00:25]} 26. Qxf2 {[%clk 00:02:42]}
{[%emt 00:00:03]} axb6 {[%clk 00:02:56]} {[%emt 00:00:01]} 27. Ra1 {[%clk
00:02:44]} Ra8 {[%clk 00:02:40]} {[%emt 00:00:19]} 28. Rxa8 {[%clk 00:02:43]}
{[%emt 00:00:04]} Rxa8 {[%clk 00:02:39]} {[%emt 00:00:03]} 29. Ra1 {[%clk
00:02:45]} {[%emt 00:00:02]} Rxa1+ {[%clk 00:02:34]} {[%emt 00:00:08]} 30. Nxa1
{[%clk 00:02:47]} Qd8 {[%clk 00:02:17]} {[%emt 00:00:20]} 31. Nb3 {[%clk
00:02:00]} {[%emt 00:00:49]} f4 {[%clk 00:01:45]} {[%emt 00:00:35]} 32. Na4
{[%clk 00:01:48]} {[%emt 00:00:16]} Ne8 {[%clk 00:01:20]} {[%emt 00:00:28]} 33.
Qa2 {[%clk 00:01:39]} {[%emt 00:00:12]} Qa8 {[%clk 00:01:10]} {[%emt 00:00:13]}
34. Nc3 {[%clk 00:01:30]} {[%emt 00:00:11]} Qb8 {[%clk 00:00:59]} {[%emt
00:00:15]} 35. Nc1 {[%clk 00:01:15]} {[%emt 00:00:18]} g5 {[%clk 00:00:53]}
{[%emt 00:00:09]} 36. Be2 {[%clk 00:01:11]} {[%emt 00:00:07]} Nh6 {[%clk
00:00:46]} {[%emt 00:00:09]} 37. Nd3 {[%clk 00:01:09]} {[%emt 00:00:05]} Nf7
{[%clk 00:00:26]} {[%emt 00:00:23]} 38. Qa6 {[%emt 00:00:02]} Nc7 {[%emt
00:00:01]} 39. Qa1 {[%clk 00:01:10]} {[%emt 00:00:02]} Ne8 {[%clk 00:00:31]} 40.
Kf1 {[%clk 00:01:05]} {[%emt 00:00:07]} Nh6 {[%clk 00:00:27]} {[%emt 00:00:07]}
41. Ke1 {[%clk 00:01:07]} g4 {[%clk 00:00:29]} {[%emt 00:00:02]} 42. hxg4
{[%clk 00:01:08]} hxg4 {[%clk 00:00:31]} 43. Kd2 {[%clk 00:01:10]} gxf3 {[%clk
00:00:29]} {[%emt 00:00:05]} 44. gxf3 {[%clk 00:01:12]} Kh7 {[%clk 00:00:30]}
{[%emt 00:00:03]} 45. Qh1 {[%clk 00:00:59]} {[%emt 00:00:15]} Qd8 {[%clk
00:00:31]} {[%emt 00:00:04]} 46. Na4 {[%clk 00:00:51]} {[%emt 00:00:11]} Qa8
{[%clk 00:00:27]} {[%emt 00:00:07]} 47. Nc3 {[%clk 00:00:43]} {[%emt 00:00:11]}
Qd8 {[%clk 00:00:29]} 48. Bf1 {[%clk 00:00:41]} {[%emt 00:00:04]} Ng7 {[%clk
00:00:27]} {[%emt 00:00:05]} 49. Kc2 {[%clk 00:00:36]} {[%emt 00:00:09]} Bc8
{[%clk 00:00:20]} {[%emt 00:00:10]} 50. Na4 {[%clk 00:00:35]} {[%emt 00:00:03]}
Bd7 {[%clk 00:00:17]} {[%emt 00:00:06]} 51. Bh3 {[%clk 00:00:21]} {[%emt
00:00:15]} Be8 {[%clk 00:00:10]} {[%emt 00:00:11]} 52. Bg4 {[%clk 00:00:17]}
{[%emt 00:00:08]} Qa8 {[%clk 00:00:12]} {[%emt 00:00:01]} 53. Kb3 {[%clk
00:00:15]} {[%emt 00:00:04]} Bxb5 {[%clk 00:00:11]} {[%emt 00:00:05]} 54. cxb5
{[%clk 00:00:15]} {[%emt 00:00:03]} c4+ {[%clk 00:00:13]} 55. Kxc4 {[%clk
00:00:14]} {[%emt 00:00:04]} Qxa4+ {[%clk 00:00:15]} 56. Nb4 {[%clk 00:00:16]}
Qa7 {[%clk 00:00:14]} {[%emt 00:00:04]} 57. Bh3 {[%clk 00:00:11]} {[%emt
00:00:08]} Qa3 {[%clk 00:00:16]} {[%emt 00:00:02]} 58. Qd1 {[%clk 00:00:07]}
{[%emt 00:00:06]} Qb2 {[%clk 00:00:16]} {[%emt 00:00:03]} 59. Qc2 {[%clk
00:00:07]} {[%emt 00:00:03]} Qd4+ {[%clk 00:00:17]} {[%emt 00:00:02]} 60. Kb3
{[%emt 00:00:03]} Qe3+ {[%clk 00:00:16]} 61. Qc3 {[%clk 00:00:11]} {[%emt
00:00:01]} Qe2 {[%clk 00:00:14]} {[%emt 00:00:06]} 62. Bd7 {[%clk 00:00:13]}
{[%emt 00:00:02]} Qd1+ {[%clk 00:00:15]} 63. Nc2 {[%clk 00:00:14]} {[%emt
00:00:03]} Qb1+ {[%clk 00:00:17]} {[%emt 00:00:01]} 64. Qb2 {[%clk 00:00:13]}
{[%emt 00:00:04]} Qd1 {[%clk 00:00:19]} 65. Qc3 {[%clk 00:00:15]} {[%emt
00:00:01]} Qb1+ {[%clk 00:00:20]} {[%emt 00:00:01]} 66. Ka3 {[%clk 00:00:17]}
{[%emt 00:00:01]} Qg1 {[%clk 00:00:14]} {[%emt 00:00:09]} 67. Nb4 {[%clk
00:00:18]} {[%emt 00:00:02]} Qe3 {[%clk 00:00:13]} {[%emt 00:00:04]} 68. Kb3
{[%clk 00:00:17]} {[%emt 00:00:04]} Qg1 {[%clk 00:00:09]} {[%emt 00:00:07]} 69.
Nd3 {[%clk 00:00:18]} {[%emt 00:00:02]} Qb1+ {[%clk 00:00:11]} {[%emt
00:00:02]} 70. Nb2 {[%clk 00:00:19]} Qf1 {[%clk 00:00:12]} {[%emt 00:00:02]} 71.
Qd3 {[%clk 00:00:21]} {[%emt 00:00:02]} Qe1 {[%clk 00:00:12]} {[%emt 00:00:03]}
72. Nc4 {[%clk 00:00:22]} {[%emt 00:00:02]} Qf2 {[%clk 00:00:10]} {[%emt
00:00:04]} 73. Nxd6 {[%clk 00:00:22]} {[%emt 00:00:03]} Qc5 {[%clk 00:00:13]}
74. Nc4 {[%clk 00:00:22]} {[%emt 00:00:04]} Nf7 {[%clk 00:00:13]} {[%emt
00:00:03]} 75. d6 {[%clk 00:00:23]} {[%emt 00:00:03]} Kg8 {[%clk 00:00:11]}
{[%emt 00:00:05]} 76. Bc6 {[%clk 00:00:23]} {[%emt 00:00:02]} Kf8 {[%clk
00:00:12]} {[%emt 00:00:03]} 77. d7 {[%clk 00:00:17]} {[%emt 00:00:09]} Nd8
{[%clk 00:00:14]} 78. Qd5 {[%clk 00:00:16]} {[%emt 00:00:04]} Qxd5 {[%clk
00:00:13]} {[%emt 00:00:04]} 79. exd5 {[%clk 00:00:16]} {[%emt 00:00:03]} e4
{[%clk 00:00:15]} 80. fxe4 {[%emt 00:00:03]} f3 81. Nd2 {[%clk 00:00:16]}
{[%emt 00:00:03]} f2 {[%clk 00:00:20]} 82. e5 {[%clk 00:00:12]} {[%emt
00:00:08]} Nf5 {[%clk 00:00:22]} 83. d6 {[%clk 00:00:06]} {[%emt 00:00:08]} Ne3
{[%clk 00:00:19]} {[%emt 00:00:06]} 84. Kc3 {[%clk 00:00:06]} {[%emt 00:00:03]}
f1=Q {[%clk 00:00:21]} {[%emt 00:00:02]} 85. Nxf1 {[%clk 00:00:08]} Nxf1 {[%clk
00:00:23]} {[%emt 00:00:02]} 86. Kd4 {[%clk 00:00:10]} {[%emt 00:00:01]} Ne6+
{[%clk 00:00:23]} {[%emt 00:00:03]} 87. Kd5 {[%clk 00:00:10]} {[%emt 00:00:03]}
Nf4+ {[%clk 00:00:23]} {[%emt 00:00:03]} 88. Ke4 {[%clk 00:00:11]} Ne6 {[%clk
00:00:23]} {[%emt 00:00:03]} 89. Kf5 {[%clk 00:00:13]} {[%emt 00:00:01]} Nd4+
{[%clk 00:00:25]} {[%emt 00:00:02]} 90. Kf6 {[%clk 00:00:15]} Ne3 {[%clk
00:00:25]} {[%emt 00:00:03]} 91. d8=Q# {[%clk 00:00:16]} {[%emt 00:00:01]} 1-0

[Event "7° Rencontres Internationales des Echecs Francophones"]
[Site "PARIS, France"]
[Date "2019.08.10"]
[Round "1.1"]
[White "Moussard, Jules"]
[Black "Hajage, Michael"]
[Result "1-0"]
[TimeControl "90'+30' + 30seconds/move"]
[WhiteElo "2613"]
[BlackElo "1877"]

1. e4 {[%clk 00:05:04]} {[%emt 01:37:33]} e5 {[%clk 00:05:05]} 2. Nc3 {[%clk
00:05:05]} Bc5 {[%clk 00:05:06]} 3. f4 {[%clk 00:05:02]} {[%emt 00:00:06]} d6
{[%clk 00:05:07]} {[%emt 00:00:02]} 4. Nf3 {[%clk 00:05:04]} {[%emt 00:00:01]}
Nf6 {[%clk 00:05:06]} {[%emt 00:00:04]} 5. Bc4 {[%clk 00:04:31]} {[%emt
00:00:36]} Nc6 {[%clk 00:05:07]} {[%emt 00:00:02]} 6. d3 {[%clk 00:04:33]}
{[%emt 00:00:02]} Bg4 {[%clk 00:05:06]} {[%emt 00:00:04]} 7. Na4 {[%clk
00:04:31]} {[%emt 00:00:05]} Bb6 {[%clk 00:04:55]} {[%emt 00:00:14]} 8. Nxb6
{[%clk 00:04:32]} {[%emt 00:00:02]} axb6 {[%clk 00:04:56]} {[%emt 00:00:02]} 9.
O-O {[%clk 00:04:24]} {[%emt 00:00:10]} Nd4 {[%clk 00:04:26]} {[%emt 00:00:34]}
10. fxe5 {[%clk 00:04:25]} {[%emt 00:00:02]} dxe5 {[%clk 00:04:26]} {[%emt
00:00:03]} 11. Bxf7+ {[%clk 00:04:21]} {[%emt 00:00:07]} Kf8 {[%clk 00:03:29]}
{[%emt 00:01:00]} 12. Bc4 {[%clk 00:04:04]} {[%emt 00:00:20]} b5 {[%clk
00:03:20]} {[%emt 00:00:13]} 13. Bb3 {[%clk 00:04:03]} {[%emt 00:00:02]} Bxf3
{[%clk 00:03:13]} {[%emt 00:00:11]} 14. gxf3 {[%clk 00:04:05]} {[%emt
00:00:01]} Nxb3 {[%clk 00:03:10]} {[%emt 00:00:07]} 15. cxb3 {[%clk 00:04:07]}
{[%emt 00:00:01]} Qd4+ {[%clk 00:03:04]} {[%emt 00:00:09]} 16. Kh1 {[%clk
00:03:54]} {[%emt 00:00:16]} Rd8 {[%clk 00:03:03]} {[%emt 00:00:03]} 17. Bg5
{[%clk 00:03:48]} {[%emt 00:00:09]} Qxd3 {[%clk 00:02:25]} {[%emt 00:00:42]} 18.
Qe1 {[%clk 00:03:49]} {[%emt 00:00:01]} h6 {[%clk 00:01:56]} {[%emt 00:00:33]}
19. Bxf6 {[%clk 00:03:24]} {[%emt 00:00:28]} gxf6 {[%clk 00:01:58]} 20. f4
{[%clk 00:03:26]} {[%emt 00:00:01]} Rd4 {[%clk 00:01:04]} {[%emt 00:00:56]} 21.
fxe5 {[%clk 00:03:27]} {[%emt 00:00:03]} Qxe4+ {[%clk 00:01:05]} {[%emt
00:00:03]} 22. Qxe4 {[%clk 00:03:29]} Rxe4 {[%clk 00:01:06]} {[%emt 00:00:01]}
23. exf6 {[%clk 00:03:26]} {[%emt 00:00:06]} Rg8 {[%clk 00:01:02]} {[%emt
00:00:07]} 24. Rad1 {[%clk 00:03:25]} {[%emt 00:00:04]} Re2 {[%clk 00:00:25]}
{[%emt 00:00:39]} 25. f7 {[%clk 00:03:25]} {[%emt 00:00:04]} Rgg2 {[%clk
00:00:10]} {[%emt 00:00:18]} 26. Rd8+ {[%clk 00:03:26]} {[%emt 00:00:01]} Kg7
{[%clk 00:00:05]} {[%emt 00:00:08]} 27. f8=Q+ {[%clk 00:03:18]} {[%emt
00:00:11]} 1-0

[Event "7° Rencontres Internationales des Echecs Francophones"]
[Site "PARIS, France"]
[Date "2019.08.10"]
[Round "1.8"]
[White "Murseli, Ujup"]
[Black "Vedmediuc, Serghei"]
[Result "0-1"]
[TimeControl "90'+30' + 30seconds/move"]
[WhiteElo "1860"]
[BlackElo "2469"]

1. c3 {[%clk 00:05:04]} {[%emt 00:00:01]} Nf6 {[%clk 00:05:03]} 2. d4 {[%clk
00:05:06]} g6 {[%clk 00:05:02]} {[%emt 00:00:03]} 3. Bf4 {[%clk 00:05:05]}
{[%emt 00:00:03]} Bg7 {[%clk 00:05:03]} {[%emt 00:00:01]} 4. e3 {[%clk
00:05:04]} {[%emt 00:00:05]} O-O {[%clk 00:05:04]} {[%emt 00:00:02]} 5. Nf3
{[%clk 00:05:03]} {[%emt 00:00:03]} d6 {[%clk 00:05:06]} {[%emt 00:00:01]} 6.
Nbd2 {[%clk 00:05:03]} {[%emt 00:00:03]} Nbd7 {[%clk 00:05:06]} {[%emt
00:00:03]} 7. Bc4 {[%clk 00:04:42]} {[%emt 00:00:24]} b6 {[%clk 00:05:02]}
{[%emt 00:00:07]} 8. O-O {[%clk 00:04:34]} {[%emt 00:00:10]} Bb7 {[%clk
00:05:03]} {[%emt 00:00:03]} 9. Re1 {[%clk 00:04:29]} {[%emt 00:00:08]} Qe8
{[%clk 00:04:44]} {[%emt 00:00:23]} 10. e4 {[%clk 00:03:43]} {[%emt 00:00:49]}
e5 {[%clk 00:04:45]} {[%emt 00:00:02]} 11. dxe5 {[%clk 00:03:24]} {[%emt
00:00:22]} dxe5 {[%clk 00:04:47]} 12. Bg3 {[%clk 00:03:01]} {[%emt 00:00:27]}
Qe7 {[%clk 00:04:48]} {[%emt 00:00:01]} 13. Qc2 {[%emt 00:00:17]} h6 {[%clk
00:04:25]} {[%emt 00:00:23]} 14. Rad1 {[%clk 00:02:52]} {[%emt 00:00:02]} Nh5
{[%clk 00:04:11]} {[%emt 00:00:16]} 15. Nh4 {[%clk 00:02:32]} {[%emt 00:00:24]}
Kh7 {[%clk 00:04:06]} {[%emt 00:00:07]} 16. Nf1 {[%clk 00:01:43]} {[%emt
00:00:51]} Rad8 {[%clk 00:04:01]} {[%emt 00:00:08]} 17. Be2 {[%clk 00:01:31]}
{[%emt 00:00:16]} Nf4 {[%clk 00:03:58]} {[%emt 00:00:06]} 18. Nf3 {[%clk
00:01:12]} {[%emt 00:00:23]} Nc5 {[%clk 00:03:51]} {[%emt 00:00:10]} 19. Rxd8
{[%clk 00:00:53]} {[%emt 00:00:23]} Rxd8 {[%clk 00:03:52]} 20. Bc4 {[%clk
00:00:33]} {[%emt 00:00:23]} a6 {[%clk 00:03:40]} {[%emt 00:00:16]} 21. a4
{[%clk 00:00:33]} {[%emt 00:00:02]} Bc6 {[%clk 00:03:24]} {[%emt 00:00:19]} 22.
Ra1 {[%clk 00:00:20]} {[%emt 00:00:17]} Bxe4 {[%clk 00:03:22]} {[%emt
00:00:04]} 23. Qc1 {[%clk 00:00:17]} {[%emt 00:00:07]} Bd5 {[%clk 00:03:14]}
{[%emt 00:00:10]} 24. Bxd5 {[%clk 00:00:17]} {[%emt 00:00:04]} Ne2+ {[%clk
00:03:16]} 25. Kh1 {[%clk 00:00:12]} {[%emt 00:00:07]} Nxc1 {[%clk 00:03:17]}
{[%emt 00:00:02]} 0-1


[ePGN "0.1;DGT LiveChess/2.2.4"]

[Event "7° Rencontres Internationales des Echecs Francophones"]
[Site "PARIS, France"]
[Date "2019.08.10"]
[Round "2.7"]
[White "Ider, Borya"]
[Black "Lambert, Adrien"]
[Result "1-0"]
[TimeControl "90'+30' + 30seconds/move"]
[WhiteElo "2492"]
[BlackElo "2074"]

1. Nf3 {[%clk 00:05:04]} {[%emt 00:31:18]} g6 {[%clk 00:05:05]} 2. d4 {[%clk
00:05:02]} {[%emt 00:00:05]} Bg7 {[%clk 00:05:04]} {[%emt 00:00:04]} 3. Bf4
{[%clk 00:05:03]} {[%emt 00:00:02]} d6 {[%clk 00:05:05]} {[%emt 00:00:01]} 4.
e3 {[%clk 00:05:04]} {[%emt 00:00:02]} Nf6 {[%clk 00:05:06]} {[%emt 00:00:03]}
5. Be2 {[%clk 00:05:05]} {[%emt 00:00:01]} O-O {[%clk 00:05:05]} {[%emt
00:00:04]} 6. h3 {[%clk 00:05:06]} {[%emt 00:00:02]} Nbd7 {[%clk 00:05:00]}
{[%emt 00:00:09]} 7. c4 {[%clk 00:05:03]} {[%emt 00:00:06]} c5 {[%clk
00:04:57]} {[%emt 00:00:06]} 8. Nc3 {[%clk 00:05:03]} {[%emt 00:00:03]} b6
{[%clk 00:04:35]} {[%emt 00:00:25]} 9. O-O {[%clk 00:04:58]} {[%emt 00:00:07]}
Bb7 {[%clk 00:04:34]} {[%emt 00:00:04]} 10. d5 {[%clk 00:04:57]} {[%emt
00:00:04]} a6 {[%clk 00:04:25]} {[%emt 00:00:12]} 11. a4 {[%clk 00:04:56]}
{[%emt 00:00:04]} Ne8 {[%clk 00:04:01]} {[%emt 00:00:27]} 12. Qb3 {[%clk
00:04:51]} {[%emt 00:00:08]} Rb8 {[%clk 00:03:48]} {[%emt 00:00:16]} 13. Rad1
{[%clk 00:04:26]} {[%emt 00:00:28]} Nc7 {[%clk 00:03:48]} {[%emt 00:00:03]} 14.
e4 {[%clk 00:04:23]} {[%emt 00:00:06]} Ne5 {[%clk 00:03:39]} {[%emt 00:00:13]}
15. Nxe5 {[%clk 00:04:20]} {[%emt 00:00:05]} dxe5 {[%clk 00:03:41]} {[%emt
00:00:02]} 16. Be3 {[%clk 00:04:18]} {[%emt 00:00:04]} Ne8 {[%clk 00:03:42]}
{[%emt 00:00:02]} 17. Qa3 {[%clk 00:04:12]} {[%emt 00:00:09]} Rc8 {[%clk
00:03:26]} {[%emt 00:00:19]} 18. a5 {[%clk 00:04:08]} {[%emt 00:00:07]} Nd6
{[%clk 00:01:38]} {[%emt 00:01:51]} 19. axb6 {[%clk 00:04:07]} {[%emt
00:00:04]} Qxb6 {[%clk 00:01:39]} {[%emt 00:00:02]} 20. Na4 {[%clk 00:04:08]}
{[%emt 00:00:02]} 1-0

[Event "7° Rencontres Internationales des Echecs Francophones"]
[Site "PARIS, France"]
[Date "2019.08.10"]
[Round "2.8"]
[White "Vedmediuc, Serghei"]
[Black "Grigorian, Roudolph"]
[Result "1-0"]
[TimeControl "90'+30' + 30seconds/move"]
[WhiteElo "2469"]
[BlackElo "2068"]

1. e4 {[%clk 00:05:05]} {[%emt 00:17:15]} e5 {[%clk 00:05:05]} 2. Nf3 {[%clk
00:05:07]} f5 {[%clk 00:05:08]} 3. Nxe5 {[%clk 00:04:59]} {[%emt 00:00:11]} Qf6
{[%clk 00:05:10]} {[%emt 00:00:02]} 4. d4 {[%clk 00:04:55]} {[%emt 00:00:07]}
d6 {[%clk 00:05:12]} {[%emt 00:00:01]} 5. Nc4 {[%clk 00:04:56]} {[%emt
00:00:02]} fxe4 {[%clk 00:05:13]} {[%emt 00:00:02]} 6. Nc3 {[%clk 00:04:56]}
{[%emt 00:00:03]} Qg6 {[%clk 00:05:15]} 7. Bf4 {[%clk 00:04:50]} {[%emt
00:00:09]} Nf6 {[%clk 00:04:46]} {[%emt 00:00:32]} 8. Ne3 {[%clk 00:04:50]}
{[%emt 00:00:02]} c6 {[%clk 00:04:27]} {[%emt 00:00:23]} 9. d5 {[%clk
00:04:51]} {[%emt 00:00:02]} c5 {[%clk 00:04:25]} {[%emt 00:00:05]} 10. Nb5
{[%clk 00:04:29]} {[%emt 00:00:25]} Nh5 {[%clk 00:04:07]} {[%emt 00:00:21]} 11.
Bxd6 {[%clk 00:04:29]} {[%emt 00:00:03]} Bxd6 {[%clk 00:02:54]} {[%emt
00:01:16]} 12. Nxd6+ {[%clk 00:04:30]} {[%emt 00:00:01]} Qxd6 {[%clk 00:02:55]}
{[%emt 00:00:02]} 13. Qxh5+ {[%clk 00:04:31]} {[%emt 00:00:03]} g6 {[%clk
00:02:57]} 14. Qh6 {[%clk 00:04:22]} {[%emt 00:00:11]} Nd7 {[%clk 00:02:13]}
{[%emt 00:00:48]} 15. h4 {[%clk 00:03:44]} {[%emt 00:00:41]} Ne5 {[%clk
00:01:15]} {[%emt 00:01:02]} 16. Qg7 {[%clk 00:03:15]} {[%emt 00:00:30]} Nf7
{[%clk 00:01:14]} {[%emt 00:00:06]} 17. Nc4 {[%clk 00:03:07]} {[%emt 00:00:11]}
Qf4 {[%clk 00:00:59]} {[%emt 00:00:18]} 18. Ne3 {[%clk 00:02:46]} {[%emt
00:00:24]} Bd7 {[%clk 00:00:53]} {[%emt 00:00:09]} 19. g3 {[%clk 00:02:47]}
{[%emt 00:00:02]} Qd6 {[%clk 00:00:23]} {[%emt 00:00:33]} 20. Nc4 {[%clk
00:02:22]} {[%emt 00:00:28]} Qe7 {[%clk 00:00:20]} {[%emt 00:00:06]} 21. d6
{[%clk 00:02:15]} {[%emt 00:00:10]} Qe6 {[%clk 00:00:20]} {[%emt 00:00:02]} 22.
b3 {[%clk 00:02:14]} {[%emt 00:00:04]} O-O-O {[%clk 00:00:19]} {[%emt
00:00:04]} 23. Bh3 {[%clk 00:02:16]} Qe8 {[%clk 00:00:10]} {[%emt 00:00:13]} 24.
Bxd7+ {[%clk 00:02:09]} {[%emt 00:00:09]} Rxd7 {[%clk 00:00:12]} {[%emt
00:00:02]} 25. O-O-O {[%clk 00:02:09]} {[%emt 00:00:03]} b5 {[%clk 00:00:12]}
{[%emt 00:00:02]} 26. Na5 {[%clk 00:01:57]} {[%emt 00:00:16]} Qe5 {[%clk
00:00:08]} {[%emt 00:00:08]} 27. Qxe5 {[%clk 00:01:55]} {[%emt 00:00:04]} Nxe5
{[%clk 00:00:10]} {[%emt 00:00:01]} 28. Rd5 {[%clk 00:01:56]} {[%emt 00:00:02]}
Re8 {[%clk 00:00:08]} {[%emt 00:00:05]} 29. Rxc5+ {[%clk 00:01:57]} {[%emt
00:00:02]} 1-0

[Event "7° Rencontres Internationales des Echecs Francophones"]
[Site "PARIS, France"]
[Date "2019.08.10"]
[Round "2.9"]
[White "Denous, Cyprien"]
[Black "Chabanon, Jean-Luc"]
[Result "0-1"]
[TimeControl "90'+30' + 30seconds/move"]
[WhiteElo "2045"]
[BlackElo "2448"]

1. Nf3 {[%clk 00:05:04]} {[%emt 00:17:42]} Nf6 {[%clk 00:05:05]} 2. g3 {[%clk
00:05:06]} {[%emt 00:00:01]} d5 {[%clk 00:05:04]} {[%emt 00:00:04]} 3. Bg2
{[%clk 00:05:07]} {[%emt 00:00:02]} c6 {[%clk 00:05:07]} 4. d3 {[%clk
00:05:07]} {[%emt 00:00:03]} Bg4 {[%clk 00:05:01]} {[%emt 00:00:09]} 5. Nbd2
{[%clk 00:05:05]} {[%emt 00:00:04]} Nbd7 {[%clk 00:05:04]} {[%emt 00:00:02]} 6.
O-O {[%clk 00:05:05]} {[%emt 00:00:02]} e5 {[%clk 00:05:04]} {[%emt 00:00:04]}
7. e4 {[%clk 00:05:01]} {[%emt 00:00:06]} dxe4 {[%clk 00:05:01]} {[%emt
00:00:06]} 8. Nxe4 {[%clk 00:05:01]} {[%emt 00:00:03]} Be7 {[%clk 00:04:46]}
{[%emt 00:00:18]} 9. h3 {[%clk 00:04:44]} {[%emt 00:00:20]} Bh5 {[%clk
00:04:42]} {[%emt 00:00:07]} 10. Qe2 {[%clk 00:04:24]} {[%emt 00:00:23]} O-O
{[%clk 00:03:59]} {[%emt 00:00:46]} 11. Bd2 {[%clk 00:03:32]} {[%emt 00:00:55]}
Nd5 {[%clk 00:03:55]} {[%emt 00:00:07]} 12. c4 {[%clk 00:03:08]} {[%emt
00:00:27]} Nc7 {[%clk 00:03:57]} {[%emt 00:00:01]} 13. Bc3 {[%clk 00:03:04]}
{[%emt 00:00:07]} Ne6 {[%clk 00:03:36]} {[%emt 00:00:24]} 14. g4 {[%clk
00:02:22]} {[%emt 00:00:45]} Nf4 {[%clk 00:03:22]} {[%emt 00:00:17]} 15. Qe3
{[%clk 00:02:20]} {[%emt 00:00:05]} Nxg2 {[%clk 00:03:15]} {[%emt 00:00:11]} 16.
Kxg2 {[%clk 00:02:20]} {[%emt 00:00:02]} Bg6 {[%clk 00:03:15]} {[%emt
00:00:04]} 17. Nxe5 {[%clk 00:01:51]} {[%emt 00:00:31]} Nxe5 {[%clk 00:03:00]}
{[%emt 00:00:18]} 18. Bxe5 {[%clk 00:01:50]} {[%emt 00:00:03]} f5 {[%clk
00:02:51]} {[%emt 00:00:12]} 19. gxf5 {[%clk 00:00:47]} {[%emt 00:01:06]} Bxf5
{[%clk 00:02:52]} {[%emt 00:00:03]} 20. Rad1 {[%clk 00:00:34]} {[%emt
00:00:15]} Qd7 {[%clk 00:02:50]} {[%emt 00:00:06]} 21. Qg3 {[%clk 00:00:26]}
{[%emt 00:00:11]} Rf7 {[%clk 00:02:29]} {[%emt 00:00:24]} 22. f4 {[%clk
00:00:20]} {[%emt 00:00:08]} Re8 {[%clk 00:02:30]} {[%emt 00:00:03]} 23. Ng5
{[%clk 00:00:11]} {[%emt 00:00:12]} Bxg5 {[%clk 00:02:21]} {[%emt 00:00:12]} 24.
Qxg5 {[%clk 00:00:12]} {[%emt 00:00:01]} Bxh3+ {[%clk 00:02:14]} {[%emt
00:00:11]} 25. Kh2 {[%clk 00:00:11]} {[%emt 00:00:03]} Bxf1 {[%clk 00:02:07]}
{[%emt 00:00:11]} 26. Rxf1 {[%clk 00:00:13]} {[%emt 00:00:01]} Re6 {[%emt
00:00:32]} 0-1